fUSD/lending_fUSD_20250108
["ID","MTS","AMOUNT","RATE_DAILY","PERIOD"]
[348143839,1736352665640,-794.1,0.00011917,2]
[348143840,1736352665650,-547.31,0.00011917,2]
[348143841,1736352665659,-500.0,0.00011917,2]
[348143842,1736352665668,-620.23,0.00011917,2]
[348143843,1736352665678,-461.91018955,0.00011917,2]
[348143844,1736352665688,-508.77,0.00011917,2]
[348143845,1736352665698,-508.77,0.00011917,2]
[348143846,1736352665707,-511.61,0.00011917,2]
[348143847,1736352665717,-1113.73,0.00011917,2]
[348143848,1736352665726,-1300.74,0.00011917,2]
[348143849,1736352665735,-2529.33,0.00011917,2]
[348143850,1736352665745,-6224.74,0.00011917,2]
[348143851,1736352665754,-519.52,0.00011917,2]
[348143852,1736352665764,-500.0,0.00011917,2]
[348143853,1736352665776,-748.98,0.00011917,2]
[348143854,1736352665786,-717.77,0.00011917,2]
[348143855,1736352665796,-581.47,0.00011917,2]
[348143856,1736352665807,-263.0,0.0001193,2]
[348143857,1736352665816,-150.0,0.00011967,2]
[348143858,1736352665825,-574.99655293,0.00011969,2]
[348143859,1736352665835,-429.70395169,0.0001198,2]
[348143860,1736352665845,-500.0,0.00011999,2]
[348143861,1736352665854,-1336.99351718,0.00012,2]
[348143862,1736352665872,-2682.394968,0.00012,2]
[348143863,1736352665885,-5104.188,0.00012,2]
[348143864,1736352665897,-30393.38929202,0.00012,2]
[348143865,1736352665908,-3799.93045815,0.00012,2]
[348143866,1736352665919,-24654.61407904,0.00012,2]
[348143867,1736352665930,-4999.9999995,0.00012,2]
[348143868,1736352665960,-503.16101319,0.00010703,2]
[348143869,1736352665970,-30734.09952381,0.00012,2]
[348143870,1736352666109,-2370.58391407,0.00010056,2]
[348143871,1736352666120,-297.04429955,0.00010056,2]
[348143872,1736352666132,-548.00952576,0.00010056,2]
[348143873,1736352666144,-862.3159344,0.00010056,2]
[348143874,1736352666155,-982.45049282,0.00010056,2]
[348143875,1736352666167,-95.8604334,0.00010056,2]
[348143876,1736352666176,-232.1977966,0.00010429,2]
[348143877,1736352666192,-267.8022034,0.00010429,2]
[348143878,1736352666346,-202.27382946,0.00010703,2]
[348143879,1736352666357,-283.62,0.00010703,2]
[348143880,1736352666369,-14.10617054,0.00010703,2]
[348143881,1736352666379,-263.10282946,0.00010815,2]
[348143882,1736352666391,-236.89717054,0.00010815,2]
[348143883,1736352666400,-103.50209946,0.00011089,2]
[348143884,1736352666411,-396.49790054,0.00011089,2]
[348143885,1736352666421,-51.62818499,0.00012,2]
[348143886,1736352666444,-479.31853133,0.00012,2]
[348143887,1736352666466,-2793.02318066,0.00012,2]
[348143888,1736352666481,-6535.06181227,0.00012,2]
[348143889,1736352666512,-18710.93835594,0.00012,2]
[348143890,1736352666523,-10088.97475711,0.00012,2]
[348143891,1736352666533,-2829.81,0.00012,2]
[348143892,1736352666543,-5374.2792615,0.00012,4]
[348143893,1736352666552,-226100.24441481,0.00012,2]
[348143894,1736352666562,-85300.84914037,0.00012,2]
[348143895,1736352666574,-52424.34406182,0.00012,2]
[348143896,1736352666583,-150.0,0.00012028,2]
[348143897,1736352666593,-634.6722844,0.00012033,2]
[348143898,1736352666602,-200.0,0.00012055,2]
[348143899,1736352666612,-36687.46,0.00012055,2]
[348143900,1736352666621,-738.54,0.00012059,2]
[348143901,1736352666630,-1000.0,0.00012059,2]
[348143902,1736352666639,-574.99655293,0.00012072,2]
[348143903,1736352666649,-500.0,0.00012073,2]
[348143904,1736352666659,-500.0,0.00012073,2]
[348143905,1736352666669,-319.23526803,0.00012073,2]
[348143906,1736352666678,-500.0,0.00012073,2]
[348143907,1736352666687,-826.65,0.00012073,2]
[348143908,1736352666698,-500.0,0.00012073,2]
[348143909,1736352666708,-500.0,0.00012073,2]
[348143910,1736352666717,-500.0,0.00012073,2]
[348143911,1736352666727,-500.0,0.00012073,2]
[348143912,1736352666736,-500.0,0.00012073,2]
[348143913,1736352666746,-500.0,0.00012073,2]
[348143914,1736352666756,-691.21,0.00012073,2]
[348143915,1736352666766,-500.0,0.00012073,2]
[348143916,1736352666778,-236.07270858,0.00012073,2]
[348143917,1736352666787,-500.0,0.00012073,2]
[348143918,1736352666797,-500.0,0.00012073,2]
[348143919,1736352666807,-500.0,0.00012073,2]
[348143920,1736352666817,-500.0,0.00012073,2]
[348143921,1736352666827,-301.08,0.00012073,2]
[348143922,1736352666837,-634.4,0.00012073,2]
[348143923,1736352666847,-586.23,0.00012073,2]
[348143924,1736352666857,-543.85,0.00012073,2]
[348143925,1736352666867,-397.54,0.00012073,2]
[348143926,1736352666876,-500.0,0.00012073,2]
[348143927,1736352666886,-500.0,0.00012073,2]
[348143928,1736352666896,-500.0,0.00012073,2]
[348143929,1736352666906,-512.41,0.00012073,2]
[348143930,1736352666915,-500.0,0.00012073,2]
[348143931,1736352666925,-508.30161474,0.00012073,2]
[348143932,1736352666935,-500.0,0.00012073,2]
[348143933,1736352666944,-500.0,0.00012073,2]
[348143934,1736352666955,-500.0,0.00012073,2]
[348143935,1736352666965,-414.1,0.00012073,2]
[348143936,1736352666975,-500.0,0.00012073,2]
[348143937,1736352666985,-500.0,0.00012073,2]
[348143938,1736352666995,-388.43,0.00012073,2]
[348143939,1736352667004,-500.0,0.00012073,2]
[348143940,1736352667014,-2668.38,0.00012073,2]
[348143941,1736352667024,-159.58,0.00012073,2]
[348143942,1736352667034,-1610.08701471,0.00012073,2]
[348143943,1736352667047,-520.98298529,0.00012073,2]
[348143944,1736352667056,-500.0,0.00012073,2]
[348143945,1736352667066,-450.42711366,0.00012073,2]
[348143946,1736352667076,-500.0,0.00012073,2]
[348143947,1736352667086,-492.4209341,0.00012073,2]
[348143948,1736352667098,-1433.4048296,0.00012073,2]
[348143949,1736352667109,-517.5242363,0.00012073,2]
[348143950,1736352667119,-258.2,0.00012073,2]
[348143951,1736352667128,-500.0,0.00012073,2]
[348143952,1736352667137,-500.0,0.00012073,2]
[348143953,1736352667147,-500.0,0.00012073,2]
[348143954,1736352667157,-277.44,0.00012073,2]
[348143955,1736352667167,-500.0,0.00012073,2]
[348143956,1736352667177,-500.0,0.00012073,2]
[348143957,1736352667186,-500.0,0.00012073,2]
[348143958,1736352667195,-557.68,0.00012073,2]
[348143959,1736352667205,-554.64,0.00012073,2]
[348143960,1736352667215,-500.0,0.00012073,2]
[348143961,1736352667225,-355.49,0.00012073,2]
[348143962,1736352667235,-500.0,0.00012073,2]
[348143963,1736352667244,-544.77,0.00012073,2]
[348143964,1736352667254,-562.2,0.00012073,2]
[348143965,1736352667265,-500.0,0.00012073,2]
[348143966,1736352667274,-391.24,0.00012074,2]
[348143967,1736352667283,-500.0,0.00012074,2]
[348143968,1736352667293,-500.0,0.00012074,2]
[348143969,1736352667303,-561.13,0.00012074,2]
[348143970,1736352667312,-512.23,0.00012074,2]
[348143971,1736352667322,-659.16,0.00012074,2]
[348143972,1736352667332,-500.0,0.00012074,2]
[348143973,1736352667342,-648.59,0.00012074,2]
[348143974,1736352667352,-659.51,0.00012074,2]
[348143975,1736352667362,-184.17,0.00012074,2]
[348143976,1736352667372,-464.63650841,0.00012074,2]
[348143977,1736352667381,-500.0,0.00012074,2]
[348143978,1736352667392,-500.0,0.00012074,2]
[348143979,1736352667401,-500.0,0.00012074,2]
[348143980,1736352667411,-500.0,0.00012074,2]
[348143981,1736352667421,-500.0,0.00012074,2]
[348143982,1736352667431,-500.0,0.00012074,2]
[348143983,1736352667441,-500.0,0.00012074,2]
[348143984,1736352667451,-500.0,0.00012074,2]
[348143985,1736352667460,-417.06,0.00012074,2]
[348143986,1736352667470,-768.47,0.00012074,2]
[348143987,1736352667479,-633.26,0.00012074,2]
[348143988,1736352667490,-579.27,0.00012074,2]
[348143989,1736352667499,-500.0,0.00012074,2]
[348143990,1736352667510,-500.0,0.00012074,2]
[348143991,1736352667520,-914.5,0.00012074,2]
[348143992,1736352667530,-500.0,0.00012074,2]
[348143993,1736352667539,-806.67,0.00012074,2]
[348143994,1736352667549,-734.32,0.00012074,2]
[348143995,1736352667559,-761.59,0.00012074,2]
[348143996,1736352667569,-1261.52,0.00012074,2]
[348143997,1736352667579,-991.6,0.00012075,2]
[348143998,1736352667588,-500.0,0.00012099,2]
[348143999,1736352667598,-500.0,0.00012115,2]
[348144000,1736352667607,-500.79562635,0.00012115,2]
[348144001,1736352667618,-5172.10402219,0.00012116,2]
[348144002,1736352667627,-150.0,0.0001214,2]
[348144003,1736352667636,-15993.1859,0.0001217,2]
[348144004,1736352667647,-574.99655293,0.00012176,2]
[348144005,1736352667656,-195904.3571,0.0001218,2]
[348144006,1736352667666,-2284.7925,0.0001218,2]
[348144007,1736352667675,-172.56586536,0.0001218,2]
[348144008,1736352667684,-1440.48,0.00012184,2]
[348144009,1736352667694,-1455.38,0.00012184,2]
[348144010,1736352667705,-1264.52,0.00012184,2]
[348144011,1736352667714,-572.19,0.00012184,2]
[348144012,1736352667724,-2007.1,0.00012184,2]
[348144013,1736352667734,-660.55,0.00012184,2]
[348144014,1736352667744,-500.0,0.00012184,2]
[348144015,1736352667754,-500.0,0.00012184,2]
[348144016,1736352667764,-440.09656804,0.00012184,2]
[348144017,1736352667778,-59.90343196,0.00012184,2]
[348144018,1736352667788,-500.0,0.00012185,2]
[348144019,1736352667797,-1679.05,0.00012185,2]
[348144020,1736352667807,-754.56,0.00012186,2]
[348144021,1736352667817,-626.68,0.00012186,2]
[348144022,1736352667827,-805.63,0.00012186,2]
[348144023,1736352667837,-598.69,0.00012186,2]
[348144024,1736352667846,-500.0,0.00012186,2]
[348144025,1736352667856,-1515.22,0.00012186,2]
[348144026,1736352667866,-150.0,0.00012189,2]
[348144027,1736352667877,-1943.57,0.0001219,2]
[348144028,1736352667887,-567.01,0.0001219,2]
[348144029,1736352667896,-500.0,0.0001219,2]
[348144030,1736352667906,-500.0,0.0001219,2]
[348144031,1736352667916,-853.64,0.0001219,2]
[348144032,1736352667925,-500.0,0.0001219,2]
[348144033,1736352667935,-1291.73,0.0001219,2]
[348144034,1736352667946,-599.43,0.0001219,2]
[348144035,1736352667956,-1479.14,0.0001219,2]
[348144036,1736352667967,-2977.8,0.0001219,2]
[348144037,1736352667978,-500.0,0.0001219,2]
[348144038,1736352667989,-1738.29,0.0001219,2]
[348144039,1736352667999,-648.58,0.0001219,2]
[348144040,1736352668009,-500.0,0.0001219,2]
[348144041,1736352668019,-697.86,0.0001219,2]
[348144042,1736352668029,-613.79,0.0001219,2]
[348144043,1736352668040,-733.89,0.0001219,2]
[348144044,1736352668050,-1103.04,0.0001219,2]
[348144045,1736352668060,-1758.74,0.0001219,2]
[348144046,1736352668070,-3172.64,0.0001219,2]
[348144047,1736352668080,-2913.58,0.0001219,2]
[348144048,1736352668090,-736.69,0.0001219,2]
[348144049,1736352668100,-1379.35,0.0001219,2]
[348144050,1736352668110,-500.0,0.0001219,2]
[348144051,1736352668120,-877.87,0.0001219,2]
[348144052,1736352668130,-1578.21,0.0001219,2]
[348144053,1736352668140,-1132.30184293,0.0001219,2]
[348144054,1736352668150,-1066.6,0.0001219,2]
[348144055,1736352668160,-1192.36,0.0001219,2]
[348144056,1736352668170,-565.28,0.0001219,2]
[348144057,1736352668181,-886.329597,0.0001219,2]
[348144058,1736352668191,-827.569931,0.0001219,2]
[348144059,1736352668202,-2228.26,0.0001219,2]
[348144060,1736352668212,-500.0,0.0001219,2]
[348144061,1736352668222,-1128.88,0.0001219,2]
[348144062,1736352668233,-172.56586536,0.0001219,2]
[348144063,1736352668243,-878.65,0.00012191,2]
[348144064,1736352668253,-648.35,0.00012191,2]
[348144065,1736352668263,-513.36,0.00012191,2]
[348144066,1736352668272,-578.92,0.00012191,2]
[348144067,1736352668282,-1749.25,0.00012191,2]
[348144068,1736352668291,-794.1,0.00012191,2]
[348144069,1736352668300,-547.31,0.00012191,2]
[348144070,1736352668310,-500.0,0.00012191,2]
[348144071,1736352668320,-508.77,0.00012191,2]
[348144072,1736352668329,-508.77,0.00012191,2]
[348144073,1736352668339,-511.61,0.00012191,2]
[348144074,1736352668349,-1113.73,0.00012191,2]
[348144075,1736352668358,-1300.74,0.00012191,2]
[348144076,1736352668367,-2529.33,0.00012191,2]
[348144077,1736352668378,-6224.74,0.00012191,2]
[348144078,1736352668387,-519.52,0.00012191,2]
[348144079,1736352668397,-500.0,0.00012191,2]
[348144080,1736352668406,-748.98,0.00012191,2]
[348144081,1736352668416,-717.77,0.00012191,2]
[348144082,1736352668426,-581.47,0.00012191,2]
[348144083,1736352668435,-192.18930676,0.00012197,2]
[348144084,1736352668446,-1775.67154448,0.000122,2]
[348144085,1736352668458,-214.23264886,0.000122,2]
[348144086,1736352668468,-1132.30184293,0.000122,2]
[348144087,1736352668478,-1000.0,0.000122,2]
[348144088,1736352668487,-150.0,0.00012217,2]
[348144089,1736352668497,-500.0,0.00012218,2]
[348144090,1736352668506,-500.0,0.00012218,2]
[348144091,1736352668516,-165.03846401,0.00012218,2]
[348144092,1736352668528,-334.96153599,0.00012218,2]
[348144093,1736352668538,-500.0,0.00012218,2]
[348144094,1736352668548,-500.0,0.00012218,2]
[348144095,1736352668558,-444.3107,0.00012218,2]
[348144096,1736352668568,-24041.35186341,0.0001222,2]
[348144097,1736352668581,-83981.20972789,0.0001222,2]
[348144098,1736352668591,-150.0,0.00012235,2]
[348144099,1736352668601,-250.0,0.00012261,2]
[348144100,1736352668611,-150.0,0.00012268,2]
[348144101,1736352668621,-150.0,0.00012269,2]
[348144102,1736352668631,-500.0,0.00012269,2]
[348144103,1736352668642,-973.54350621,0.0001227,2]
[348144104,1736352668652,-150.0,0.00012274,2]
[348144105,1736352668663,-150.0,0.00012274,2]
[348144106,1736352668673,-150.0,0.00012274,2]
[348144107,1736352668682,-3616.9947475,0.00012275,2]
[348144108,1736352668692,-798.27791213,0.00012275,2]
[348144109,1736352668704,-23745.96753777,0.00012275,2]
[348144110,1736352668767,-396.5129134,0.00011363,2]
[348144111,1736352668784,-103.4870866,0.00011363,2]
[348144112,1736352668794,-2542.85227701,0.00012275,2]
[348144113,1736352668806,-4901.40969564,0.00012275,2]
[348144114,1736352668817,-23862.09118534,0.00012275,2]
[348144115,1736352668828,-234341.38463341,0.00012275,2]
[348144116,1736352668840,-518.424,0.00012275,2]
[348144117,1736352668852,-4173.47560101,0.00012275,2]
[348144118,1736352668865,-10524.55024838,0.00012275,2]
[348144119,1736352668875,-17108.42675277,0.00012277,2]
[348144120,1736352668886,-1027.43750262,0.00012277,2]
[348144121,1736352668898,-1363.68834929,0.00012277,2]
[348144122,1736352668910,-33443.96350595,0.00012277,2]
[348144123,1736352668930,-500.0,9.999e-05,2]
[348144124,1736352668940,-265680.71879533,0.00012277,2]
[348144125,1736352668951,-474.86,0.00012279,2]
[348144126,1736352668963,-500.0,0.00012279,2]
[348144127,1736352668973,-500.0,0.00012279,2]
[348144128,1736352668982,-500.0,0.00012279,2]
[348144129,1736352668992,-500.0,0.00012279,2]
[348144130,1736352669003,-1538.66,0.00012279,2]
[348144131,1736352669013,-784.99,0.00012279,2]
[348144132,1736352669023,-500.0,0.00012279,2]
[348144133,1736352669034,-500.0,0.00012279,2]
[348144134,1736352669043,-1055.48808993,0.00012279,3]
[348144135,1736352669052,-500.0,0.00012279,2]
[348144136,1736352669063,-500.0,0.00012279,2]
[348144137,1736352669073,-807.73,0.00012279,2]
[348144138,1736352669084,-1145.5,0.00012279,2]
[348144139,1736352669093,-150.0,0.00012279,2]
[348144140,1736352669103,-1065.86,0.00012279,2]
[348144141,1736352669112,-500.0,0.00012279,2]
[348144142,1736352669122,-566.24938533,0.00012279,2]
[348144143,1736352669132,-787.59,0.00012279,2]
[348144144,1736352669142,-500.0,0.00012279,2]
[348144145,1736352669151,-613.79,0.00012279,2]
[348144146,1736352669160,-2515.96,0.00012279,2]
[348144147,1736352669169,-3000.0,0.00012279,2]
[348144148,1736352669179,-500.0,0.00012279,2]
[348144149,1736352669188,-574.99655293,0.00012279,2]
[348144150,1736352669197,-822232.39728829,0.0001228,3]
[348144151,1736352669208,-2000.0,0.0001228,2]
[348144152,1736352669217,-200.0,0.0001228,2]
[348144153,1736352669226,-325.8944465,0.00012283,2]
[348144154,1736352669236,-515.6079897,0.00012283,2]
[348144155,1736352669245,-973.54350621,0.0001229,2]
[348144156,1736352669255,-18172.573894,0.00012292,2]
[348144157,1736352669264,-13932.4169005,0.00012292,2]
[348144158,1736352669273,-9692.2599071,0.00012292,2]
[348144159,1736352669283,-5452.1029136,0.00012292,2]
[348144160,1736352669292,-1211.9459202,0.00012292,2]
[348144161,1736352669302,-5422.5708701,0.00012292,2]
[348144162,1736352669312,-4157.3372311,0.00012292,2]
[348144163,1736352669322,-2892.1035922,0.00012292,2]
[348144164,1736352669331,-1626.8699532,0.00012292,2]
[348144165,1736352669341,-361.6363142,0.00012292,2]
[348144166,1736352669350,-515.6079894,0.00012292,2]
[348144167,1736352669359,-515.6079894,0.00012292,2]
[348144168,1736352669369,-515.6079894,0.00012292,2]
[348144169,1736352669378,-515.6079894,0.00012292,2]
[348144170,1736352669387,-515.6079894,0.00012292,2]
[348144171,1736352669396,-325.8944465,0.00012292,2]
[348144172,1736352669405,-325.8944465,0.00012292,2]
[348144173,1736352669414,-325.8944465,0.00012292,2]
[348144174,1736352669424,-325.8944465,0.00012292,2]
[348144175,1736352669433,-325.8944465,0.00012292,2]
[348144176,1736352669442,-2931.6694269,0.00012292,2]
[348144177,1736352669453,-2246.3441063,0.00012292,2]
[348144178,1736352669462,-1561.0187857,0.00012292,2]
[348144179,1736352669472,-875.6934651,0.00012292,2]
[348144180,1736352669481,-190.3681446,0.00012292,2]
[348144181,1736352669491,-91969.32276568,0.00012296,2]
[348144182,1736352669501,-222165.21575907,0.00012297,2]
[348144183,1736352669510,-256022.72968866,0.00012297,2]
[348144184,1736352669520,-744292.53170048,0.00012297,2]
[348144185,1736352669529,-53263.63183114,0.00012297,2]
[348144186,1736352669539,-150.0,0.00012299,2]
[348144187,1736352669549,-2000.0,0.00012299,2]
[348144188,1736352669561,-2000.0,0.00012299,2]
[348144189,1736352669571,-2000.0,0.00012299,2]
[348144190,1736352669580,-7374.8040203,0.00012299,2]
[348144191,1736352669590,-2000.0,0.00012299,2]
[348144192,1736352669599,-2000.0,0.00012299,2]
[348144193,1736352669608,-2000.0,0.00012299,2]
[348144194,1736352669617,-2000.0,0.00012299,2]
[348144195,1736352669627,-2000.0,0.00012299,2]
[348144196,1736352669636,-2000.0,0.00012299,2]
[348144197,1736352669646,-1000.0,0.00012299,2]
[348144198,1736352669655,-6677252.51878411,0.000123,4]
[348144199,1736352669682,-417.76166719,0.000123,4]
[348144200,1736352669693,-94553.52735735,0.000123,4]
[348144201,1736352669707,-6685.92315262,0.000123,4]
[348144202,1736352669716,-29277.51214078,0.000123,2]
[348144203,1736352669727,-1772.84939215,0.000123,2]
[348144204,1736352669739,-301.92197159,0.000123,2]
[348144205,1736352669757,-2034.52399846,0.000123,2]
[348144206,1736352669771,-6502.5588071,0.000123,2]
[348144207,1736352669784,-15671.61417153,0.000123,2]
[348144208,1736352670368,-730.07140233,9.999e-05,2]
[348144209,1736352670379,-276.88859767,9.999e-05,2]
[348144210,1736352670389,-375.73669771,0.00010273,2]
[348144211,1736352670400,-124.26330229,0.00010273,2]
[348144212,1736352670410,-500.0,0.00010429,2]
[348144213,1736352670420,-500.0,0.00010547,2]
[348144214,1736352670430,-500.0,0.00010703,2]
[348144215,1736352670440,-500.0,0.00010821,2]
[348144216,1736352670452,-500.0,0.00011637,2]
[348144217,1736352670463,-500.0,0.00011911,2]
[348144218,1736352670473,-172.21,0.00012185,2]
[348144219,1736352670482,-172.56586536,0.000122,2]
[348144220,1736352670492,-540628.81578863,0.000123,2]
[348144221,1736352670503,-563.91035196,0.000123,2]
[348144222,1736352670515,-469.46564525,0.000123,2]
[348144223,1736352670526,-3932.74721704,0.000123,2]
[348144224,1736352670537,-9653.80000013,0.000123,2]
[348144225,1736352670549,-833.87987711,0.000123,2]
[348144226,1736352670561,-4727.31850868,0.000123,2]
[348144227,1736352670572,-14159.49802454,0.000123,2]
[348144228,1736352670583,-444.43581652,0.000123,2]
[348144229,1736352670595,-4717.6,0.000123,2]
[348144230,1736352670615,-500.0,0.00010272,2]
[348144231,1736352670625,-664.90682513,0.000123,2]
[348144232,1736352670636,-4422.2573921,0.000123,2]
[348144233,1736352670648,-1341.47799,0.000123,2]
[348144234,1736352670661,-434.67999985,0.000123,2]
[348144235,1736352670672,-4245.22314852,0.000123,2]
[348144236,1736352670702,-1006.96,0.00010273,2]
[348144237,1736352670712,-500.0,0.00010703,2]
[348144238,1736352670722,-38840.99024,0.000123,2]
[348144239,1736352670733,-2033.70692799,0.000123,2]
[348144240,1736352670751,-13636.89355177,0.000123,2]
[348144241,1736352670762,-1092.13677785,0.000123,2]
[348144242,1736352670777,-727.45129461,0.000123,2]
[348144243,1736352670789,-2417.74338737,0.000123,2]
[348144244,1736352670800,-3065.14969328,0.000123,2]
[348144245,1736352670812,-22322.03929,0.000123,2]
[348144246,1736352671080,-500.0,0.00010267,2]
[348144247,1736352671090,-500.0,0.00010429,2]
[348144248,1736352671100,-411.3,0.00010429,2]
[348144249,1736352671112,-88.7,0.00010429,2]
[348144250,1736352671121,-500.0,0.00010541,2]
[348144251,1736352671132,-500.0,0.00010546,2]
[348144252,1736352671142,-1006.96,0.00010547,2]
[348144253,1736352671152,-500.0,0.00010703,2]
[348144254,1736352671162,-500.0,0.00010703,2]
[348144255,1736352671172,-500.0,0.00010815,2]
[348144256,1736352671182,-522.1296602,0.0001082,2]
[348144257,1736352671192,-1006.96,0.00010821,2]
[348144258,1736352671204,-500.0,0.00010977,2]
[348144259,1736352671214,-500.0,0.00011095,2]
[348144260,1736352671223,-1006.96,0.00011095,2]
[348144261,1736352671233,-500.0,0.00011369,2]
[348144262,1736352671244,-500.0,0.00011643,2]
[348144263,1736352671254,-20021.24418134,0.000123,2]
[348144264,1736352671266,-1358.47452517,0.000123,2]
[348144265,1736352671277,-470.0,0.000123,2]
[348144266,1736352671290,-1510.0603134,0.000123,2]
[348144267,1736352671315,-1267.9896,0.0001002,2]
[348144268,1736352671325,-40949.3753194,0.000123,2]
[348144269,1736352671337,-30717.52300421,0.000123,2]
[348144270,1736352671348,-8195.25901937,0.000123,2]
[348144271,1736352671360,-39727.51292869,0.000123,2]
[348144272,1736352671373,-26351.70510331,0.000123,2]
[348144273,1736352671386,-190217.33815057,0.000123,2]
[348144274,1736352671397,-36985.99698623,0.000123,2]
[348144275,1736352671409,-90943.37067011,0.000123,2]
[348144276,1736352671422,-538.70369134,0.000123,2]
[348144277,1736352671434,-2704.598,0.000123,2]
[348144278,1736352671445,-418.18435819,0.000123,2]
[348144279,1736352671459,-479247.86312539,0.000123,2]
[348144280,1736352671471,-3876.25222147,0.000123,2]
[348144281,1736352671484,-1839.99999992,0.000123,2]
[348144282,1736352671496,-1009.0940635,0.000123,2]
[348144283,1736352671515,-576.53,0.00011917,2]
[348144284,1736352671525,-8975.75478984,0.000123,2]
[348144285,1736352671538,-1613.70970627,0.000123,2]
[348144286,1736352671549,-918.0,0.000123,2]
[348144287,1736352671561,-777.741585,0.000123,2]
[348144288,1736352671573,-3759.5482,0.000123,2]
[348144289,1736352671585,-830.95631847,0.000123,2]
[348144290,1736352671597,-251639.09518473,0.000123,2]
[348144291,1736352671616,-1006.96,0.00011369,2]
[348144292,1736352671626,-42146.82343159,0.000123,2]
[348144496,1736353832136,-591.3,8.219e-05,2]
[348144497,1736353832148,-616.60279992,8.67e-05,2]
[348144498,1736353832160,-8335.9791,8.67e-05,2]
[348144499,1736353832170,-300.0,8.769e-05,2]
[348144500,1736353832179,-228.91,8.77e-05,2]
[348144501,1736353832190,-12142.72,8.77e-05,2]
[348144502,1736353832199,-295.41,8.947e-05,2]
[348144503,1736353832209,-1184.88,9.094e-05,2]
[348144504,1736353832218,-2815.71850009,9.094e-05,2]
[348144505,1736353832230,-4164.24520804,9.094e-05,2]
[348144506,1736353832241,-1071.52999766,9.094e-05,2]
[348144507,1736353832254,-24959.97861616,9.094e-05,2]
[348144508,1736353832263,-250.0,9.178e-05,2]
[348144509,1736353832273,-1118.99807629,9.334e-05,2]
[348144510,1736353832283,-1118.99807628,9.334e-05,2]
[348144511,1736353832520,-1000.0,9.355e-05,2]
[348144512,1736353832530,-250.0,9.386e-05,2]
[348144513,1736353832540,-202.37,9.469e-05,2]
[348144514,1736353832549,-250.0,9.501e-05,2]
[348144515,1736353832559,-150.99,9.589e-05,2]
[348144516,1736353832569,-420.0,9.646e-05,2]
[348144517,1736353832579,-2500.0,9.9e-05,2]
[348144518,1736353832588,-4806.1797,9.956e-05,2]
[348144519,1736353832598,-150.0,9.998e-05,2]
[348144520,1736353832608,-960.32,9.999e-05,2]
[348144521,1736353832620,-970.25,9.999e-05,2]
[348144522,1736353832631,-843.01,9.999e-05,2]
[348144523,1736353832641,-500.0,9.999e-05,2]
[348144524,1736353832650,-1584.65,9.999e-05,2]
[348144525,1736353832659,-500.0,9.999e-05,2]
[348144526,1736353832669,-373.23,9.999e-05,2]
[348144527,1736353832678,-1110.46,9.999e-05,2]
[348144528,1736353832687,-422.64,9.999e-05,2]
[348144529,1736353832697,-500.0,9.999e-05,2]
[348144530,1736353832706,-500.0,9.999e-05,2]
[348144531,1736353832715,-861.16,9.999e-05,2]
[348144532,1736353832724,-6473.97880946,0.0001,4]
[348144533,1736353832734,-456423.19611842,0.0001,2]
[348144534,1736353832746,-2308.34147264,0.0001,2]
[348144535,1736353832758,-413.21193929,0.0001,2]
[348144536,1736353832775,-479.3635473,0.0001,2]
[348144537,1736353832786,-910.44338869,0.0001,2]
[348144541,1736353832805,-44180.47754478,0.0001,2]
[348144543,1736353832816,-70878.55530871,0.0001,2]
[348144545,1736353832833,-1239.35,0.0001,2]
[348144547,1736353832844,-2265.56819684,0.0001,2]